fUST/lending_fUST_20240721
["ID","MTS","AMOUNT","RATE_DAILY","PERIOD"]
[332783586,1721519446623,-150.0,0.00013698,2]
[332783588,1721519446632,-500.0,0.00013698,2]
[332783590,1721519446641,-500.0,0.00013698,2]
[332783592,1721519446651,-500.0,0.00013698,2]
[332783593,1721519446661,-500.0,0.00013698,2]
[332783595,1721519446671,-191.2377236,0.00013698,2]
[332783597,1721519446680,-8268.0,0.00013698,2]
[332783599,1721519446691,-500.0,0.00013698,2]
[332783601,1721519446700,-500.0,0.00013698,2]
[332783603,1721519446710,-500.0,0.00013698,2]
[332783605,1721519446720,-500.0,0.00013698,2]
[332783606,1721519446730,-500.0,0.00013698,2]
[332783608,1721519446739,-1045.11,0.00013698,2]
[332783610,1721519446752,-500.0,0.00013698,2]
[332783612,1721519446761,-500.0,0.00013698,2]
[332783613,1721519446771,-1320.11,0.00013698,2]
[332783615,1721519446780,-552.51580868,0.00013698,2]
[332783617,1721519446791,-500.0,0.00013698,2]
[332783619,1721519446800,-500.0,0.00013698,2]
[332783621,1721519446809,-4790.27,0.00013698,2]
[332783623,1721519446819,-666.25,0.00013698,2]
[332783625,1721519446830,-500.0,0.00013698,2]
[332783627,1721519446840,-500.0,0.00013698,2]
[332783628,1721519446849,-500.0,0.00013698,2]
[332783630,1721519446859,-500.0,0.00013698,2]
[332783632,1721519446869,-500.0,0.00013698,2]
[332783634,1721519446878,-5687.68,0.00013698,2]
[332783636,1721519446887,-925.61,0.00013698,2]
[332783638,1721519446897,-2809.91,0.00013698,2]
[332783639,1721519446907,-5687.68,0.00013698,2]
[332783641,1721519446917,-500.0,0.00013698,2]
[332783643,1721519446926,-5687.68,0.00013698,2]
[332783645,1721519446935,-5687.68,0.00013698,2]
[332783647,1721519446946,-5687.68,0.00013698,2]
[332783649,1721519446955,-5687.68,0.00013698,2]
[332783651,1721519446965,-500.0,0.00013698,2]
[332783652,1721519446975,-2467.16,0.00013698,2]
[332783654,1721519446984,-5687.68,0.00013698,2]
[332783656,1721519446994,-5687.68,0.00013698,2]
[332783658,1721519447004,-500.0,0.00013698,2]
[332783660,1721519447013,-5687.68,0.00013698,2]
[332783662,1721519447023,-5687.68,0.00013698,2]
[332783664,1721519447033,-5687.68,0.00013698,2]
[332783666,1721519447042,-5687.68,0.00013698,2]
[332783667,1721519447051,-5687.68,0.00013698,2]
[332783669,1721519447060,-5687.68,0.00013698,2]
[332783671,1721519447070,-5687.68,0.00013698,2]
[332783673,1721519447079,-5687.68,0.00013698,2]
[332783675,1721519447089,-5687.68,0.00013698,2]
[332783677,1721519447099,-5687.68,0.00013698,2]
[332783678,1721519447108,-5687.68,0.00013698,2]
[332783680,1721519447118,-5687.68,0.00013698,2]
[332783682,1721519447127,-5687.68,0.00013698,2]
[332783684,1721519447136,-1454.0,0.00013698,2]
[332783686,1721519447146,-5687.68,0.00013698,2]
[332783688,1721519447155,-5687.68,0.00013698,2]
[332783690,1721519447166,-3384.03,0.00013698,2]
[332783691,1721519447175,-5687.7249425,0.00013698,2]
[332783693,1721519447184,-3384.03,0.00013698,2]
[332783695,1721519447196,-500.0,0.00013698,2]
[332783697,1721519447205,-3384.03,0.00013698,2]
[332783699,1721519447214,-769.94,0.00013698,2]
[332783701,1721519447224,-3384.03,0.00013698,2]
[332783703,1721519447233,-3384.03,0.00013698,2]
[332783704,1721519447243,-500.0,0.00013698,2]
[332783706,1721519447253,-3384.03,0.00013698,2]
[332783708,1721519447262,-3384.03,0.00013698,2]
[332783710,1721519447272,-3384.03,0.00013698,2]
[332783712,1721519447282,-500.0,0.00013698,2]
[332783714,1721519447291,-3384.03,0.00013698,2]
[332783716,1721519447300,-3384.03,0.00013698,2]
[332783718,1721519447309,-504.50131564,0.00013698,2]
[332783720,1721519447319,-3384.03,0.00013698,2]
[332783721,1721519447329,-3384.03,0.00013698,2]
[332783723,1721519447339,-3384.03,0.00013698,2]
[332783725,1721519447349,-3384.03,0.00013698,2]
[332783727,1721519447359,-3384.03,0.00013698,2]
[332783729,1721519447368,-3384.03,0.00013698,2]
[332783731,1721519447378,-3384.03,0.00013698,2]
[332783733,1721519447388,-500.0,0.00013698,2]
[332783734,1721519447397,-500.0,0.00013698,2]
[332783736,1721519447407,-3384.03,0.00013698,2]
[332783738,1721519447416,-3384.03,0.00013698,2]
[332783740,1721519447426,-3384.03,0.00013698,2]
[332783742,1721519447436,-3384.03,0.00013698,2]
[332783744,1721519447450,-500.0,0.00013698,2]
[332783746,1721519447459,-3384.03,0.00013698,2]
[332783748,1721519447469,-3384.03,0.00013698,2]
[332783750,1721519447478,-3384.03919494,0.00013698,2]
[332783752,1721519447487,-500.0,0.00013698,2]
[332783754,1721519447497,-500.0,0.00013698,2]
[332783756,1721519447506,-500.0,0.00013698,2]
[332783758,1721519447516,-484.1569262,0.00013698,2]
[332783760,1721519447525,-500.0,0.00013698,2]
[332783762,1721519447534,-500.0,0.00013698,2]
[332783763,1721519447545,-1893.6,0.00013698,2]
[332783764,1721519447554,-500.0,0.00013698,2]
[332783765,1721519447565,-2300.07,0.00013698,2]
[332783766,1721519447574,-641.87,0.00013698,2]
[332783767,1721519447584,-13179.09,0.00013698,2]
[332783768,1721519447593,-500.0,0.00013698,2]
[332783769,1721519447603,-500.0,0.00013698,2]
[332783770,1721519447612,-500.0,0.00013698,2]
[332783771,1721519447622,-521.76625834,0.00013698,2]
[332783772,1721519447631,-500.0,0.00013698,2]
[332783773,1721519447641,-500.0,0.00013698,2]
[332783774,1721519447650,-502.57318082,0.00013698,2]
[332783775,1721519447660,-1096.14,0.00013698,2]
[332783776,1721519447669,-500.0,0.00013698,2]
[332783777,1721519447679,-500.0,0.00013698,2]
[332783778,1721519447688,-7394.48,0.00013698,2]
[332783779,1721519447700,-500.0,0.00013698,2]
[332783780,1721519447709,-500.0,0.00013698,2]
[332783781,1721519447719,-500.0,0.00013698,2]
[332783782,1721519447729,-500.0,0.00013698,2]
[332783783,1721519447738,-589.15,0.00013698,2]
[332783784,1721519447752,-500.0,0.00013698,2]
[332783785,1721519447762,-193.47418578,0.00013698,2]
[332783786,1721519447771,-500.0,0.00013698,2]
[332783787,1721519447781,-504.74873459,0.00013698,2]
[332783788,1721519447791,-898.05,0.00013698,2]
[332783789,1721519447799,-500.0,0.00013698,2]
[332783790,1721519447809,-500.0,0.00013698,2]
[332783791,1721519447818,-500.0,0.00013698,2]
[332783792,1721519447827,-500.0,0.00013698,2]
[332783793,1721519447837,-500.0,0.00013698,2]
[332783794,1721519447847,-957.59,0.00013698,2]
[332783795,1721519447857,-801.96,0.00013698,2]
[332783796,1721519447866,-1178.7,0.00013698,2]
[332783797,1721519447875,-500.0,0.00013698,2]
[332783798,1721519447885,-500.0,0.00013698,2]
[332783799,1721519447895,-500.0,0.00013698,2]
[332783800,1721519447904,-523.63,0.00013698,2]
[332783801,1721519447913,-1252.85,0.00013698,2]
[332783802,1721519447923,-500.0,0.00013698,2]
[332783803,1721519447932,-500.0,0.00013698,2]
[332783804,1721519447944,-500.0,0.00013698,2]
[332783805,1721519447953,-500.0,0.00013698,2]
[332783806,1721519447963,-500.0,0.00013698,2]
[332783807,1721519447972,-500.0,0.00013698,2]
[332783808,1721519447982,-1619.61,0.00013698,2]
[332783809,1721519447992,-500.0,0.00013698,2]
[332783810,1721519448001,-4039.72,0.00013698,2]
[332783811,1721519448012,-500.0,0.00013698,2]
[332783812,1721519448022,-500.0,0.00013698,2]
[332783813,1721519448031,-270.43895219,0.00013698,2]
[332783814,1721519448040,-500.0,0.00013698,2]
[332783815,1721519448050,-520.61,0.00013698,2]
[332783816,1721519448059,-2675.51,0.00013698,2]
[332783817,1721519448069,-500.0,0.00013698,2]
[332783818,1721519448079,-2085.37,0.00013698,2]
[332783819,1721519448089,-500.0,0.00013698,2]
[332783820,1721519448099,-2368.1920592,0.00013699,2]
[332783821,1721519448109,-3000.0,0.00013699,2]
[332783823,1721519448119,-2611.83561,0.00013699,2]
[332783824,1721519448129,-456.22,0.00013699,2]
[332783825,1721519448139,-206.5817573,0.0001389,2]
[332783827,1721519448148,-558.84,0.00013961,2]
[332783828,1721519448158,-558.84,0.00013961,2]
[332783830,1721519448168,-558.84,0.00013961,2]
[332783832,1721519448179,-558.84,0.00013961,2]
[332783834,1721519448190,-558.84,0.00013971,2]
[332783836,1721519448201,-558.84,0.00013971,2]
[332783838,1721519448211,-558.84,0.00013971,2]
[332783840,1721519448222,-558.84,0.00013971,2]
[332783842,1721519448232,-558.84,0.00013971,2]
[332783844,1721519448241,-558.94640636,0.00013971,2]
[332783846,1721519448251,-500.0,0.00013972,2]
[332783848,1721519448261,-500.0,0.00013972,2]
[332783850,1721519448271,-500.0,0.00013972,2]
[332783852,1721519448280,-351.71501332,0.00013972,2]
[332783854,1721519448290,-500.0,0.00013972,2]
[332783856,1721519448300,-500.0,0.00013972,2]
[332783858,1721519448310,-500.0,0.00013972,2]
[332783860,1721519448319,-174.31015921,0.00013972,2]
[332783862,1721519448329,-256.28354357,0.00013972,2]
[332783864,1721519448339,-500.0,0.00013972,2]
[332783866,1721519448349,-500.0,0.00013972,2]
[332783868,1721519448359,-500.0,0.00013972,2]
[332783870,1721519448369,-500.0,0.00013972,2]
[332783872,1721519448379,-500.0,0.00013972,2]
[332783874,1721519448389,-500.0,0.00013972,2]
[332783876,1721519448399,-500.0,0.00013972,2]
[332783878,1721519448410,-2007.06,0.00013972,2]
[332783880,1721519448420,-629.05,0.00013972,2]
[332783882,1721519448430,-551.98589564,0.00013972,2]
[332783884,1721519448441,-2025.85,0.00013972,2]
[332783886,1721519448451,-577.81,0.00013972,2]
[332783888,1721519448460,-500.0,0.00013972,2]
[332783890,1721519448469,-500.0,0.00013972,2]
[332783892,1721519448478,-553.59452076,0.00013972,2]
[332783894,1721519448489,-500.0,0.00013972,2]
[332783896,1721519448499,-500.0,0.00013972,2]
[332783898,1721519448509,-170.43129503,0.00013972,2]
[332783900,1721519448518,-609.52367989,0.00013972,2]
[332783902,1721519448528,-500.0,0.00013972,2]
[332783904,1721519448538,-575.84430787,0.00013972,2]
[332783906,1721519448548,-500.0,0.00013972,2]
[332783908,1721519448558,-500.0,0.00013972,2]
[332783910,1721519448568,-500.0,0.00013972,2]
[332783912,1721519448579,-510.58623771,0.00013972,2]
[332783914,1721519448589,-1352.33,0.00013972,2]
[332783916,1721519448600,-688.33,0.00013972,2]
[332783918,1721519448611,-500.0,0.00013972,2]
[332783920,1721519448623,-503.48521691,0.00013972,2]
[332783922,1721519448635,-500.0,0.00013972,2]
[332783924,1721519448645,-500.0,0.00013972,2]
[332783926,1721519448655,-342.45378004,0.00013972,2]
[332783928,1721519448665,-500.0,0.00013972,2]
[332783930,1721519448675,-500.0,0.00013972,2]
[332783932,1721519448695,-500.0,0.00013972,2]
[332783934,1721519448708,-500.0,0.00013972,2]
[332783937,1721519448720,-500.0,0.00013972,2]
[332783939,1721519448731,-500.0,0.00013972,2]
[332783941,1721519448743,-500.0,0.00013972,2]
[332783943,1721519448758,-500.0,0.00013972,2]
[332783945,1721519448769,-500.0,0.00013972,2]
[332783947,1721519448779,-583.09,0.00013972,2]
[332783949,1721519448791,-500.0,0.00013972,2]
[332783951,1721519448802,-500.0,0.00013972,2]
[332783953,1721519448813,-500.0,0.00013972,2]
[332783955,1721519448824,-500.0,0.00013972,2]
[332783957,1721519448835,-500.0,0.00013972,2]
[332783960,1721519448847,-500.0,0.00013972,2]
[332783962,1721519448859,-1110.82,0.00013972,2]
[332783964,1721519448870,-502.09315046,0.00013972,2]
[332783966,1721519448881,-500.0,0.00013972,2]
[332783968,1721519448893,-858.74,0.00013972,2]
[332783970,1721519448904,-500.0,0.00013972,2]
[332783972,1721519448916,-500.0,0.00013972,2]
[332783974,1721519448927,-676.5,0.00013972,2]
[332783976,1721519448937,-500.0,0.00013972,2]
[332783979,1721519448950,-500.0,0.00013972,2]
[332783981,1721519448960,-500.0,0.00013972,2]
[332783983,1721519448971,-500.0,0.00013972,2]
[332783985,1721519448982,-568.21543276,0.00013972,2]
[332783987,1721519448994,-515.7897912,0.00013972,2]
[332783989,1721519449004,-500.0,0.00013972,2]
[332783991,1721519449015,-500.0,0.00013972,2]
[332783992,1721519449026,-500.0,0.00013972,2]
[332783993,1721519449036,-797.72,0.00013972,2]
[332783994,1721519449046,-500.0,0.00013972,2]
[332783995,1721519449058,-513.24561122,0.00013972,2]
[332783996,1721519449068,-500.0,0.00013972,2]
[332783997,1721519449078,-500.0,0.00013972,2]
[332783998,1721519449089,-500.0,0.00013972,2]
[332783999,1721519449100,-500.0,0.00013972,2]
[332784000,1721519449111,-500.0,0.00013972,2]
[332784001,1721519449123,-500.0,0.00013972,2]
[332784002,1721519449135,-500.0,0.00013972,2]
[332784003,1721519449147,-500.0,0.00013972,2]
[332784004,1721519449157,-500.0,0.00013972,2]
[332784005,1721519449169,-836.33,0.00013972,2]
[332784006,1721519449179,-508.33268368,0.00013972,2]
[332784007,1721519449190,-555.28,0.00013972,2]
[332784008,1721519449200,-500.0,0.00013972,2]
[332784009,1721519449213,-501.09350504,0.00013972,2]
[332784010,1721519449224,-500.0,0.00013972,2]
[332784011,1721519449234,-500.0,0.00013972,2]
[332784012,1721519449245,-907.91,0.00013972,2]
[332784013,1721519449256,-500.0,0.00013972,2]
[332784014,1721519449267,-500.0,0.00013972,2]
[332784015,1721519449278,-500.0,0.00013972,2]
[332784016,1721519449289,-553.54,0.00013972,2]
[332784017,1721519449300,-500.0,0.00013972,2]
[332784018,1721519449312,-500.0,0.00013972,2]
[332784019,1721519449324,-1029.32,0.00013972,2]
[332784020,1721519449336,-500.0,0.00013972,2]
[332784021,1721519449347,-500.0,0.00013972,2]
[332784022,1721519449358,-500.0,0.00013972,2]
[332784023,1721519449370,-500.0,0.00013972,2]
[332784024,1721519449381,-500.0,0.00013972,2]
[332784025,1721519449393,-500.0,0.00013972,2]
[332784026,1721519449404,-1115.34,0.00013972,2]
[332784027,1721519449416,-502.63082264,0.00013972,2]
[332784028,1721519449426,-2605.92,0.00013972,2]
[332784029,1721519449437,-500.0,0.00013972,2]
[332784030,1721519449448,-500.0,0.00013972,2]
[332784031,1721519449458,-500.0,0.00013972,2]
[332784032,1721519449469,-504.32763335,0.00013972,2]
[332784033,1721519449480,-500.0,0.00013972,2]
[332784034,1721519449491,-500.0,0.00013972,2]
[332784035,1721519449506,-500.0,0.00013972,2]
[332784036,1721519449518,-500.0,0.00013972,2]
[332784037,1721519449529,-500.51009932,0.00013972,2]
[332784038,1721519449539,-223.886275,0.00013972,2]
[332784039,1721519449551,-517.79801418,0.00013972,2]
[332784040,1721519449563,-500.0,0.00013972,2]
[332784041,1721519449573,-223.886275,0.00013972,2]
[332784042,1721519449585,-500.0,0.00013972,2]
[332784043,1721519449595,-500.0,0.00013972,2]
[332784044,1721519449606,-500.0,0.00013972,2]
[332784045,1721519449616,-500.0,0.00013972,2]
[332784046,1721519449627,-500.0,0.00013972,2]
[332784047,1721519449638,-1276.77,0.00013972,2]
[332784048,1721519449648,-500.0,0.00013972,2]
[332784049,1721519449659,-500.0,0.00013972,2]
[332784050,1721519449669,-500.0,0.00013972,2]
[332784051,1721519449680,-500.0,0.00013972,2]
[332784052,1721519449692,-500.55636249,0.00013972,2]
[332784053,1721519449701,-628.81656615,0.00013972,2]
[332784054,1721519449712,-500.0,0.00013972,2]
[332784055,1721519449723,-500.0,0.00013972,2]
[332784058,1721519449736,-500.0,0.00013972,2]
[332784059,1721519449752,-798.67,0.00013972,2]
[332784060,1721519449765,-501.43999562,0.00013972,2]
[332784061,1721519449775,-515.19,0.00013972,2]
[332784062,1721519449786,-500.0,0.00013972,2]
[332784064,1721519449800,-500.0,0.00013972,2]
[332784066,1721519449811,-500.0,0.00013972,2]
[332784068,1721519449822,-500.0,0.00013972,2]
[332784071,1721519449834,-500.0,0.00013972,2]
[332784073,1721519449846,-723.31,0.00013972,2]
[332784075,1721519449856,-500.0,0.00013972,2]
[332784077,1721519449866,-500.0,0.00013972,2]
[332784079,1721519449876,-500.0,0.00013972,2]
[332784081,1721519449886,-500.0,0.00013972,2]
[332784083,1721519449897,-500.0,0.00013972,2]
[332784085,1721519449907,-2335.04,0.00013972,2]
[332784087,1721519449919,-1576.68,0.00013972,2]
[332784089,1721519449933,-500.0,0.00013972,2]
[332784091,1721519449945,-868.47,0.00013972,2]
[332784093,1721519449954,-662.51,0.00013972,2]
[332784095,1721519449965,-500.0,0.00013972,2]
[332784097,1721519449976,-629.23,0.00013972,2]
[332784100,1721519449986,-825.81,0.00013972,2]
[332784102,1721519449997,-503.24791271,0.00013972,2]
[332784104,1721519450009,-505.86,0.00013972,2]
[332784106,1721519450018,-506.95192731,0.00013972,2]
[332784108,1721519450029,-2113.08,0.00013972,2]
[332784110,1721519450039,-433.59797248,0.00013972,2]
[332784112,1721519450050,-2877.78,0.00013972,2]
[332784114,1721519450060,-500.0,0.00013972,2]
[332784116,1721519450072,-500.0,0.00013972,2]
[332784118,1721519450082,-500.0,0.00013972,2]
[332784120,1721519450092,-498.27488213,0.00013972,2]
[332784122,1721519450102,-582.84323496,0.00013972,2]
[332784124,1721519450112,-674.93,0.00013972,2]
[332784127,1721519450122,-500.0,0.00013972,2]
[332784128,1721519450132,-500.0,0.00013972,2]
[332784129,1721519450142,-585.55,0.00013972,2]
[332784130,1721519450152,-2922.57,0.00013972,2]
[332784131,1721519450163,-500.0,0.00013972,2]
[332784132,1721519450173,-1186.22,0.00013972,2]
[332784133,1721519450184,-500.0,0.00013972,2]
[332784134,1721519450194,-500.0,0.00013972,2]
[332784135,1721519450204,-833.89,0.00013972,2]
[332784136,1721519450214,-500.0,0.00013972,2]
[332784137,1721519450224,-216.38158047,0.00013972,2]
[332784138,1721519450234,-500.0,0.00013972,2]
[332784139,1721519450244,-171.07781714,0.00013972,2]
[332784140,1721519450254,-938.32,0.00013972,2]
[332784141,1721519450264,-606.41,0.00013972,2]
[332784142,1721519450274,-499.97734961,0.00013972,2]
[332784143,1721519450283,-504.91331471,0.00013972,2]
[332784144,1721519450293,-511.33,0.00013972,2]
[332784145,1721519450303,-500.0,0.00013972,2]
[332784146,1721519450312,-500.0,0.00013972,2]
[332784147,1721519450322,-500.0,0.00013972,2]
[332784148,1721519450332,-500.0,0.00013972,2]
[332784149,1721519450341,-500.0,0.00013972,2]
[332784150,1721519450351,-878.98,0.00013972,2]
[332784151,1721519450361,-572.82,0.00013972,2]
[332784152,1721519450373,-556.87,0.00013972,2]
[332784153,1721519450384,-555.23502785,0.00013972,2]
[332784154,1721519450395,-500.0,0.00013972,2]
[332784155,1721519450405,-500.0,0.00013972,2]
[332784156,1721519450415,-1145.07,0.00013972,2]
[332784157,1721519450427,-500.0,0.00013972,2]
[332784158,1721519450439,-1034.77,0.00013972,2]
[332784159,1721519450450,-500.0,0.00013972,2]
[332784160,1721519450461,-536.17445901,0.00013972,2]
[332784161,1721519450471,-500.0,0.00013972,2]
[332784162,1721519450480,-500.0,0.00013972,2]
[332784163,1721519450490,-602.35,0.00013972,2]
[332784164,1721519450500,-500.0,0.00013972,2]
[332784165,1721519450510,-500.0,0.00013972,2]
[332784166,1721519450519,-500.0,0.00013972,2]
[332784167,1721519450532,-1819.62,0.00013972,2]
[332784168,1721519450543,-500.0,0.00013972,2]
[332784169,1721519450554,-500.96592398,0.00013972,2]
[332784170,1721519450564,-644.94,0.00013972,2]
[332784171,1721519450576,-824.76,0.00013972,2]
[332784172,1721519450587,-500.0,0.00013972,2]
[332784173,1721519450597,-629.36,0.00013972,2]
[332784174,1721519450608,-500.0,0.00013972,2]
[332784175,1721519450619,-471.65661398,0.00013972,2]
[332784176,1721519450630,-500.0,0.00013972,2]
[332784177,1721519450641,-500.0,0.00013972,2]
[332784178,1721519450651,-511.26929444,0.00013972,2]
[332784179,1721519450662,-515.84546709,0.00013972,2]
[332784180,1721519450673,-4135.28,0.00013972,2]
[332784181,1721519450683,-508.7950236,0.00013972,2]
[332784182,1721519450693,-500.0,0.00013972,2]
[332784183,1721519450704,-500.0,0.00013972,2]
[332784184,1721519450715,-1804.8,0.00013972,2]
[332784185,1721519450726,-500.0,0.00013972,2]
[332784186,1721519450736,-1511.84,0.00013972,2]
[332784187,1721519450746,-500.0,0.00013972,2]
[332784188,1721519450759,-789.05,0.00013972,2]
[332784189,1721519450768,-522.39727874,0.00013972,2]
[332784190,1721519450780,-500.0,0.00013972,2]
[332784191,1721519450792,-698.84,0.00013972,2]
[332784192,1721519450805,-500.0,0.00013972,2]
[332784193,1721519450816,-791.54,0.00013972,2]
[332784194,1721519450827,-500.0,0.00013972,2]
[332784195,1721519450839,-555.5,0.00013972,2]
[332784196,1721519450849,-500.0,0.00013972,2]
[332784197,1721519450860,-500.0,0.00013972,2]
[332784198,1721519450873,-500.0,0.00013972,2]
[332784207,1721519451085,-502.36816493,0.00013972,2]
[332784209,1721519451095,-601.68,0.00013972,2]
[332784211,1721519451104,-500.0,0.00013972,2]
[332784213,1721519451114,-585.64,0.00013972,2]
[332784215,1721519451123,-500.0,0.00013972,2]
[332784216,1721519451132,-500.0,0.00013972,2]
[332784217,1721519451142,-500.0,0.00013972,2]
[332784219,1721519451152,-500.0,0.00013972,2]
[332784220,1721519451161,-500.0,0.00013972,2]
[332784222,1721519451170,-510.0,0.00013972,2]
[332784224,1721519451180,-622.82,0.00013972,2]
[332784226,1721519451189,-500.0,0.00013972,2]
[332784228,1721519451199,-545.35,0.00013972,2]
[332784230,1721519451208,-500.0,0.00013972,2]
[332784232,1721519451218,-500.0,0.00013972,2]
[332784234,1721519451227,-1663.61,0.00013972,2]
[332784236,1721519451237,-500.0,0.00013972,2]
[332784238,1721519451246,-500.0,0.00013972,2]
[332784240,1721519451255,-500.0,0.00013972,2]
[332784242,1721519451265,-867.9,0.00013972,2]
[332784244,1721519451275,-302.496175,0.00013972,2]
[332784246,1721519451284,-302.496175,0.00013972,2]
[332784248,1721519451294,-500.0,0.00013972,2]
[332784250,1721519451303,-302.496175,0.00013972,2]
[332784252,1721519451312,-302.496175,0.00013972,2]
[332784254,1721519451321,-500.0,0.00013972,2]
[332784256,1721519451331,-1950.83,0.00013972,2]
[332784258,1721519451340,-500.0,0.00013972,2]
[332784260,1721519451349,-415.26668233,0.00013972,2]
[332784262,1721519451359,-500.0,0.00013972,2]
[332784264,1721519451368,-859.26,0.00013972,2]
[332784266,1721519451377,-500.0,0.00013972,2]
[332784268,1721519451387,-879.62,0.00013972,2]
[332784270,1721519451396,-1876.93,0.00013972,2]
[332784272,1721519451406,-500.0,0.00013972,2]
[332784274,1721519451415,-2604.43,0.00013972,2]
[332784276,1721519451424,-503.04863189,0.00013972,2]
[332784278,1721519451434,-1609.23,0.00013972,2]
[332784280,1721519451443,-833.39,0.00013972,2]
[332784283,1721519451453,-555.37,0.00013972,2]
[332784284,1721519451463,-553.23201354,0.00013972,2]
[332784287,1721519451473,-500.0,0.00013972,2]
[332784289,1721519451483,-1692.13,0.00013972,2]
[332784291,1721519451495,-500.0,0.00013972,2]
[332784293,1721519451506,-1892.2,0.00013972,2]
[332784295,1721519451517,-500.0,0.00013972,2]
[332784297,1721519451528,-500.0,0.00013972,2]
[332784299,1721519451538,-500.0,0.00013972,2]
[332784301,1721519451548,-500.0,0.00013972,2]
[332784303,1721519451558,-500.0,0.00013972,2]
[332784306,1721519451569,-500.0,0.00013972,2]
[332784308,1721519451580,-500.0,0.00013972,2]
[332784310,1721519451591,-521.45625736,0.00013972,2]
[332784312,1721519451603,-526.48973884,0.00013972,2]
[332784314,1721519451614,-1247.1,0.00013972,2]
[332784317,1721519451625,-500.0,0.00013972,2]
[332784319,1721519451635,-500.0,0.00013972,2]
[332784321,1721519451644,-500.0,0.00013972,2]
[332784323,1721519451654,-935.09,0.00013972,2]
[332784324,1721519451664,-166.27130496,0.00013972,2]
[332784327,1721519451674,-500.0,0.00013972,2]
[332784329,1721519451683,-1616.59,0.00013972,2]
[332784331,1721519451695,-500.0,0.00013972,2]
[332784333,1721519451704,-500.0,0.00013972,2]
[332784335,1721519451714,-505.93712617,0.00013972,2]
[332784337,1721519451724,-500.0,0.00013972,2]
[332784339,1721519451733,-500.0,0.00013972,2]
[332784341,1721519451743,-1307.06,0.00013972,2]
[332784343,1721519451756,-500.0,0.00013972,2]
[332784345,1721519451767,-500.0,0.00013972,2]
[332784347,1721519451777,-551.34285931,0.00013972,2]
[332784349,1721519451786,-1764.74,0.00013972,2]
[332784351,1721519451796,-788.1,0.00013972,2]
[332784353,1721519451805,-335.80325809,0.00013972,2]
[332784355,1721519451815,-28439.29,0.00013972,2]
[332784357,1721519451828,-876.08,0.00013972,2]
[332784359,1721519451838,-1041.97,0.00013972,2]
[332784361,1721519451847,-500.0,0.00013972,2]
[332784363,1721519451858,-659.37,0.00013972,2]
[332784365,1721519451869,-500.0,0.00013972,2]
[332784367,1721519451879,-500.0,0.00013972,2]
[332784370,1721519451891,-500.0,0.00013972,2]
[332784372,1721519451900,-1360.72,0.00013972,2]
[332784374,1721519451910,-500.0,0.00013972,2]
[332784376,1721519451921,-849.12,0.00013972,2]
[332784378,1721519451933,-2166.72,0.00013972,2]
[332784380,1721519451945,-500.0,0.00013972,2]
[332784382,1721519451954,-653.69,0.00013972,2]
[332784384,1721519451964,-500.0,0.00013972,2]
[332784386,1721519451974,-504.88,0.00013972,2]